bitfinex/quotes_ETHUSD_20250821
["timestamp","ask_amount","ask_price","bid_price","bid_amount"]
[1755743902935,28.96995625,4293.4,4293.3,0.001]
[1755743903100,29.40985625,4293.4,4293.3,0.001]
[1755743904311,28.91694751,4293.4,4293.3,0.001]
[1755743904513,29.40978867,4293.4,4293.3,0.001]
[1755743904842,28.91694751,4293.4,4293.3,0.001]
[1755743905048,59.4094881,4293.4,4293.3,0.001]
[1755743905753,29.62303658,4293.4,4293.3,0.001]
[1755743905977,29.75117119,4293.4,4293.3,0.001]
[1755743906336,59.75117119,4293.4,4293.3,0.001]
[1755743906534,59.75116637,4293.4,4293.3,0.001]
[1755743906734,29.62303658,4293.4,4293.3,0.001]
[1755743906966,29.4094881,4293.4,4293.3,0.001]
[1755743907170,29.40922205,4293.4,4293.3,0.001]
[1755743907566,59.40922205,4293.4,4293.3,0.001]
[1755743907775,59.62280879,4293.4,4293.3,0.001]
[1755743908267,59.40922205,4293.4,4293.3,0.001]
[1755743909439,58.91668146,4293.4,4293.3,0.001]
[1755743909673,25.32768146,4293.4,4293.3,0.001]
[1755743909875,28.70109237,4293.4,4293.3,0.001]
[1755743910361,24.67419237,4293.4,4293.3,0.001]
[1755743910768,28.26119237,4293.4,4293.3,0.001]
[1755743910946,28.70109237,4293.4,4293.3,0.001]
[1755743911758,3.0,4293.4,4293.3,0.001]
[1755743911958,24.97499237,4293.4,4293.3,0.2893]
[1755743912282,28.26219237,4293.4,4293.3,0.001]
[1755743912580,3.0,4293.3,4292.9,0.001]
[1755743912779,21.67419237,4293.0,4292.9,0.001]
[1755743912989,28.26519237,4293.0,4292.9,0.001]
[1755743913148,28.9187674,4293.0,4292.9,0.001]
[1755743913349,29.86985455,4293.0,4292.8,0.02]
[1755743913562,24.38899237,4292.5,4292.4,0.001]
[1755743913887,24.38899237,4292.5,4291.8,0.021]
[1755743913888,33.66,4292.4,4291.8,0.021]
[1755743914197,21.79099237,4292.0,4291.8,0.021]
[1755743914379,24.79099237,4292.0,4291.8,0.021]
[1755743914579,29.74489794,4292.0,4291.8,0.021]
[1755743914754,29.87294446,4292.0,4291.8,0.021]
[1755743914957,60.04480183,4292.0,4291.8,0.021]
[1755743915352,59.4245976,4292.0,4291.8,0.021]
[1755743915666,55.94852057,4292.0,4291.8,0.021]
[1755743915978,59.54352057,4292.0,4291.8,0.021]
[1755743916275,59.54322665,4292.0,4291.8,0.021]
[1755743916683,3.66,4291.9,4290.3,0.4398]
[1755743916882,3.0,4290.9,4290.3,0.4398]
[1755743917050,28.09979237,4290.9,4290.3,0.4398]
[1755743917349,28.09979237,4290.9,4290.8,0.3113]
[1755743917750,28.38499237,4290.9,4290.8,0.023]
[1755743917948,28.82489237,4290.9,4290.8,0.023]
[1755743918150,28.82489237,4290.9,4289.7,0.4398]
[1755743918151,3.0,4290.8,4288.8,0.02]
[1755743918356,30.0,4290.7,4289.3,0.4398]
[1755743918664,0.52000313,4292.0,4290.7,0.2883]
[1755743918665,21.38899237,4291.1,4290.7,0.2883]
[1755743918861,24.38899237,4290.9,4290.8,0.4398]
[1755743919181,24.38899237,4290.9,4289.8,0.02]
[1755743919182,28.08499237,4290.9,4290.2,0.4398]
[1755743919378,3.696,4290.9,4290.8,0.2883]
[1755743919580,28.08499237,4290.9,4290.8,0.2883]
[1755743919779,28.08499237,4290.9,4289.8,0.02]
[1755743919780,3.0,4290.8,4289.8,0.02]
[1755743919980,0.77892297,4292.0,4290.7,0.2883]
[1755743920181,3.0,4290.8,4290.7,0.7281]
[1755743920492,28.08799237,4290.8,4290.7,0.7281]
[1755743920706,0.11892297,4292.0,4290.7,0.7281]
[1755743920863,21.38899237,4291.2,4290.7,0.2883]
[1755743921196,3.0,4291.0,4290.8,0.439]
[1755743921400,6.7,4290.9,4290.8,0.439]
[1755743921698,3.0,4290.8,4289.9,0.17610659]
[1755743921997,3.0,4289.9,4289.8,0.02]
[1755743922184,6.699,4289.9,4289.8,0.02]
[1755743922390,21.38899237,4290.0,4289.8,0.02]
[1755743922391,0.2,4292.2,4289.8,0.3335]
[1755743922564,21.38899237,4290.6,4289.8,0.7725]
[1755743922768,3.701,4290.5,4289.9,0.439]
[1755743922967,6.701,4290.5,4290.4,0.3135]
[1755743923270,6.701,4290.5,4290.4,0.7525]
[1755743923975,6.702,4290.5,4290.4,0.7525]
[1755743924173,21.40899237,4291.8,4290.4,0.7525]
[1755743924385,21.38899237,4291.4,4290.5,0.439]
[1755743924626,21.38899237,4291.0,4290.5,0.439]
[1755743924894,21.38899237,4291.0,4290.9,0.3135]
[1755743925195,3.0,4290.9,4290.6,0.439]
[1755743925386,3.0,4290.7,4290.0,0.439]
[1755743925589,21.38899237,4290.4,4290.0,0.439]
[1755743925766,24.38899237,4290.4,4290.3,0.3135]
[1755743925973,3.0,4290.3,4289.8,0.02]
[1755743926204,3.0,4290.1,4289.8,0.02]
[1755743926405,3.0,4290.3,4290.0,0.3135]
[1755743926706,3.703,4290.2,4290.0,0.3135]
[1755743927008,3.703,4290.2,4289.8,0.02]
[1755743927195,24.38899237,4289.9,4289.8,0.02]
[1755743927375,28.09099237,4289.9,4289.8,0.02]
[1755743927778,5.604,4292.4,4289.8,0.7725]
[1755743927779,21.38899237,4291.3,4289.8,0.7725]
[1755743928104,3.0,4291.1,4289.9,0.439]
[1755743928276,24.38899237,4290.9,4289.9,0.439]
[1755743928480,0.1168,4290.0,4289.9,0.439]
[1755743928674,6.8188,4290.0,4289.8,0.02]
[1755743928874,3.0,4289.9,4289.8,0.02]
[1755743930073,3.8198,4289.9,4289.8,0.7725]
[1755743931223,6.8208,4289.9,4289.8,0.7735]
[1755743931380,3.1168,4289.9,4289.8,0.7735]
[1755743931579,6.8198,4289.9,4289.8,0.7735]
[1755743932011,6.8188,4289.9,4289.8,0.7735]
[1755743932521,6.8178,4289.9,4289.8,0.7735]
[1755743932883,3.8178,4289.9,4289.8,0.7735]
[1755743934720,3.8148,4289.9,4289.8,0.7735]
[1755743936189,0.1168,4289.9,4289.8,0.7735]
[1755743936396,3.8148,4289.9,4289.8,0.7735]
[1755743937187,25.20379237,4289.9,4289.8,0.021]
[1755743937407,3.8148,4289.9,4289.8,0.7735]
[1755743937608,6.8148,4289.9,4289.8,0.7735]
[1755743937818,3.1168,4289.9,4289.8,0.7735]
[1755743938190,3.8118,4289.9,4289.8,0.7735]
[1755743938389,0.1168,4289.9,4289.8,0.7735]
[1755743939617,0.1168,4289.9,4289.8,0.3345]
[1755743940006,0.1168,4289.9,4289.8,0.021]
[1755743940624,0.1178,4289.9,4289.8,0.021]
[1755743941000,0.1168,4289.9,4289.8,0.021]
[1755743941205,0.1168,4289.9,4289.8,0.7735]
[1755743943308,0.1168,4289.9,4289.8,0.3345]
[1755743943520,0.1168,4289.9,4289.8,0.7735]
[1755743943723,3.8118,4289.9,4289.8,0.7735]
[1755743944338,0.1168,4289.9,4289.8,0.7735]
[1755743945338,0.1168,4289.9,4289.8,0.3345]
[1755743946246,0.1168,4289.9,4289.8,0.7735]
[1755743946940,0.1168,4289.9,4289.8,0.021]
[1755743948441,0.1168,4289.9,4289.8,0.7735]
[1755743948649,6.8058,4289.9,4289.8,0.7735]
[1755743948821,3.1168,4289.9,4289.8,0.7735]
[1755743949149,6.8048,4289.9,4289.8,0.7735]
[1755743949654,6.8048,4289.9,4289.8,0.021]
[1755743950043,6.9038,4289.9,4289.8,0.021]
[1755743950266,7.00102131,4289.9,4289.8,0.021]
[1755743950413,7.70813312,4289.9,4289.8,0.021]
[1755743950748,28.39301368,4289.9,4289.8,0.021]
[1755743950954,29.10012834,4289.9,4289.8,0.021]
[1755743951160,28.98510055,4289.9,4289.8,0.021]
[1755743951329,28.98510055,4289.9,4287.0,4.43]
[1755743951330,3.0,4289.8,4287.0,4.43]
[1755743951656,3.0,4289.0,4287.0,4.43]
[1755743951857,3.0,4288.8,4287.8,0.68]
[1755743952071,21.38899237,4288.2,4287.8,0.02]
[1755743952231,3.0,4288.0,4287.8,0.02]
[1755743953268,0.002,4287.9,4287.8,0.02]
[1755743953431,0.2039,4287.9,4287.8,0.02]
[1755743953739,24.71144717,4287.9,4287.8,0.02]
[1755743953937,24.39099237,4287.9,4287.8,0.02]
[1755743954151,28.09599237,4287.9,4287.8,0.02]
[1755743954340,28.29789237,4287.9,4287.8,0.02]
[1755743954539,28.09599237,4287.9,4287.8,0.02]
[1755743954935,3.002,4287.9,4287.8,0.02]
[1755743955137,21.38899237,4287.9,4287.8,0.02]
[1755743955345,28.29889237,4287.9,4287.8,0.02]
[1755743956060,28.09699237,4287.9,4287.8,0.02]
[1755743956367,28.29889237,4287.9,4287.8,0.02]
[1755743956783,28.09699237,4287.9,4287.8,0.02]
[1755743956979,24.39099237,4287.9,4287.8,0.02]
[1755743957197,28.10199237,4287.9,4287.8,0.02]
[1755743957665,24.39099237,4287.9,4287.8,0.02]
[1755743957870,28.09999237,4287.9,4287.8,0.02]
[1755743958367,24.38899237,4287.9,4287.8,0.02]
[1755743958577,3.0,4287.9,4287.8,0.02]
[1755743958745,6.708,4287.9,4287.8,0.02]
[1755743959151,21.38899237,4288.6,4287.8,0.7979]
[1755743959352,3.707,4288.5,4287.8,0.7979]
[1755743960243,0.1168,4287.9,4287.8,0.7979]
[1755743960469,3.8228,4287.9,4287.8,0.7979]
[1755743960636,0.1168,4287.9,4287.8,0.7979]
[1755743961158,3.705,4288.4,4287.9,0.66]
[1755743961335,3.8218,4288.4,4288.3,0.3147]
[1755743961542,3.8218,4288.4,4288.3,0.7779]
[1755743961872,0.1168,4288.4,4288.3,0.7779]
[1755743962388,0.1168,4288.9,4288.4,0.66]
[1755743962611,21.38899237,4290.3,4288.8,0.3147]
[1755743962612,0.1168,4289.1,4288.8,0.3147]
[1755743962888,3.704,4289.6,4288.9,0.486516]
[1755743963096,3.704,4289.6,4289.5,0.3147]
[1755743963400,3.704,4289.6,4288.7,0.1168]
[1755743963401,0.002,4289.6,4288.7,0.1168]
[1755743963561,0.1168,4288.8,4288.3,0.4632]
[1755743963756,0.1168,4287.9,4287.8,0.021]
[1755743965961,3.1168,4287.9,4287.8,0.021]
[1755743966172,3.1188,4287.9,4287.8,0.021]
[1755743966470,3.1168,4287.9,4287.8,0.021]
[1755743966674,3.8188,4287.9,4287.8,0.021]
[1755743966997,3.8178,4287.9,4287.8,0.7989]
[1755743967194,3.0,4289.2,4287.8,0.7989]
[1755743967401,0.1168,4288.1,4287.8,0.7989]
[1755743967574,0.1168,4288.1,4287.9,0.4632]
[1755743967771,0.1168,4288.1,4288.0,0.3147]
[1755743968180,0.1168,4288.1,4288.0,0.7779]
[1755743968565,0.1168,4288.1,4287.8,0.021]
[1755743968898,0.1168,4288.1,4288.0,0.3147]
[1755743969062,0.1168,4288.1,4288.0,0.7779]
[1755743969977,0.1168,4288.1,4287.8,0.021]
[1755743970173,3.0,4288.0,4287.8,0.021]
[1755743973287,3.8238,4288.1,4287.9,0.7779]
[1755743973511,0.1168,4288.1,4288.0,0.4632]
[1755743973695,0.1168,4288.1,4288.0,0.7779]
[1755743978610,0.1168,4288.3,4288.0,0.7779]
[1755743978789,0.1168,4288.3,4288.1,0.48652035]
[1755743978989,0.1168,4288.3,4288.2,0.3147]
[1755743979395,0.1168,4288.3,4288.2,0.7779]
[1755743979583,0.1168,4288.6,4288.2,0.7779]
[1755743979790,0.1168,4288.6,4288.3,0.4632]
[1755743980000,0.1168,4288.6,4288.5,0.3147]
[1755743980397,0.002,4289.1,4288.5,0.7779]
[1755743980398,0.1168,4288.9,4288.5,0.7779]
[1755743980723,0.1168,4288.9,4288.6,0.4632]
[1755743980923,0.1168,4288.9,4288.8,0.3147]
[1755743981411,0.1168,4288.9,4288.8,0.7509]
[1755743983615,0.002,4289.1,4288.8,0.7509]
[1755743983816,0.002,4289.1,4288.9,0.459516]
[1755743984114,0.002,4289.1,4289.0,0.9544]
[1755743984487,0.002,4289.1,4289.0,1.3906]
[1755743984792,0.002,4289.1,4289.0,1.54134]
[1755743985496,0.002,4289.1,4289.0,1.65814]
[1755743986235,0.101,4289.1,4288.5,0.1168]
[1755743986524,3.0,4289.0,4287.9,0.4362]
[1755743986821,3.0,4289.0,4288.1,0.4362]
[1755743986999,3.0,4289.0,4288.2,0.0233198]
[1755743987185,0.002,4289.1,4288.2,0.6833198]
[1755743987380,0.002,4289.1,4288.3,0.4362]
[1755743989221,21.38899237,4288.8,4288.0,0.001]
[1755743991084,3.723,4288.7,4288.0,0.001]
[1755743991487,0.099,4288.1,4288.0,0.001]
[1755743995798,3.716,4288.2,4288.0,0.2954]
[1755743995998,3.716,4288.2,4288.0,0.7316]
[1755743996183,21.38899237,4288.7,4288.0,0.7316]
[1755743996388,3.716,4289.1,4288.1,0.02332035]
[1755743996590,3.716,4289.1,4288.0,0.001]
[1755743996924,0.002,4289.1,4288.1,0.4362]
[1755743997132,0.002,4289.1,4289.0,0.2944]
[1755743997491,0.002,4289.1,4289.0,0.7306]
[1755744000207,0.002,4289.1,4288.0,0.001]
[1755744000412,0.002,4289.1,4288.1,0.4362]
[1755744000609,0.002,4289.1,4288.2,0.66]
[1755744001110,0.002,4289.1,4288.4,0.66]
[1755744001652,0.002,4289.1,4288.3,0.4362]
[1755744001807,21.38899237,4288.8,4288.3,0.4362]
[1755744002007,21.38899237,4288.8,4288.0,0.001]
[1755744003114,3.706,4289.0,4288.0,0.001]
[1755744003115,21.38899237,4288.9,4288.0,0.001]
[1755744003321,3.705,4288.8,4288.0,0.001]
[1755744003723,21.38899237,4288.7,4288.0,0.001]
[1755744003913,0.099,4288.1,4288.0,0.001]
[1755744005651,3.703,4288.1,4288.0,0.001]
[1755744005816,3.703,4288.1,4288.0,0.2954]
[1755744006016,3.702,4288.2,4288.0,0.7316]
[1755744006438,3.702,4288.3,4288.1,0.4362]
[1755744006614,0.002,4289.1,4288.2,0.7306]
[1755744006615,0.1168,4288.6,4288.2,0.7306]
[1755744006936,0.1168,4288.6,4288.3,0.4362]
[1755744007140,3.702,4288.9,4288.5,0.2944]
[1755744007360,0.1168,4288.8,4288.5,0.2944]
[1755744007515,0.1168,4288.8,4288.6,0.4362]
[1755744007832,0.1168,4288.8,4288.7,0.7306]
[1755744008233,0.1168,4288.8,4288.2,0.553]
[1755744008564,21.38899237,4288.6,4288.0,0.001]
[1755744008759,0.1168,4288.3,4288.0,0.001]
[1755744010451,3.002,4289.1,4288.2,0.2944]
[1755744010751,3.002,4289.1,4288.3,0.4362]
[1755744010752,3.0,4288.9,4288.3,0.4362]
[1755744011049,0.1168,4288.7,4288.3,0.4362]
[1755744011250,0.1168,4288.7,4288.0,0.1178]
[1755744011251,21.38899237,4288.6,4288.0,0.1178]
[1755744011947,21.38899237,4288.6,4288.0,0.001]
[1755744012149,0.1168,4288.2,4288.0,0.001]
[1755744012353,3.698,4288.6,4288.1,0.7382]
[1755744012560,0.1168,4288.4,4288.2,0.0233198]
[1755744012746,0.1168,4288.4,4288.3,0.7382]
[1755744013952,21.38899237,4289.0,4288.3,0.7382]
[1755744014171,0.1168,4288.6,4288.3,0.7382]
[1755744014463,0.1168,4288.6,4288.4,0.4478]
[1755744014625,0.1168,4288.6,4288.5,0.2904]
[1755744014824,0.1168,4288.6,4288.5,0.7382]
[1755744016368,3.693,4289.0,4288.5,0.7382]
[1755744016666,0.1168,4288.8,4288.5,0.7382]
[1755744017741,0.1168,4288.8,4288.5,0.2904]
[1755744017966,0.1168,4288.8,4288.6,0.47111763]
[1755744018169,0.1168,4288.8,4288.7,0.2904]
[1755744018386,0.1168,4288.8,4288.7,0.7382]
[1755744018875,0.002,4289.1,4288.8,0.66]
[1755744019171,0.002,4289.1,4289.0,0.2904]
[1755744019530,0.002,4289.1,4289.0,0.2799]
[1755744019739,0.002,4289.1,4289.0,0.7277]
[1755744021365,0.002,4289.1,4289.0,0.2799]
[1755744021743,0.002,4289.1,4289.0,0.7277]
[1755744022140,0.002,4289.1,4289.0,0.2799]
[1755744022346,0.002,4289.1,4288.7,0.0567]
[1755744023543,0.002,4289.1,4288.7,0.5045]
[1755744023876,0.002,4289.1,4288.8,0.4478]
[1755744024043,0.002,4289.1,4289.0,0.2904]
[1755744024670,0.7427,4289.1,4288.7,0.0567]
[1755744024968,0.7427,4289.1,4288.4,0.1168]
[1755744024969,0.1168,4289.0,4288.4,0.1168]
[1755744026475,0.1168,4289.0,4288.4,0.5646]
[1755744029544,0.002,4289.1,4288.9,0.2904]
[1755744029747,0.002,4289.1,4289.0,0.47111545]
[1755744029956,0.002,4289.1,4289.0,0.76151545]
[1755744030756,0.002,4289.1,4289.0,0.7382]
[1755744031469,0.002,4289.1,4289.0,0.2904]
[1755744032074,0.002,4289.1,4289.0,0.7382]
[1755744035491,0.002,4289.1,4289.0,0.2904]
[1755744036711,0.002,4289.1,4288.8,0.1168]
[1755744037483,0.002,4289.1,4289.0,0.2904]
[1755744037873,0.002,4289.1,4289.0,0.7382]
[1755744038073,0.002,4289.1,4289.0,0.2904]
[1755744039667,0.002,4289.1,4288.8,0.1168]
[1755744039668,0.3123,4289.1,4288.8,0.1168]
[1755744040003,0.4304,4289.0,4288.8,0.1168]
[1755744040163,0.3115,4288.9,4288.4,0.1168]
[1755744040899,0.4292,4288.8,4288.4,0.1168]
[1755744041133,0.3011,4288.5,4288.1,0.001]
[1755744041607,0.4302,4288.4,4288.1,0.001]
[1755744041777,0.4179,4288.2,4288.1,0.001]
[1755744042163,0.8481,4288.2,4288.1,0.001]
[1755744043191,0.4179,4288.2,4288.1,0.001]
[1755744043893,0.8481,4288.2,4288.1,0.001]
[1755744044398,0.4179,4288.2,4288.1,0.001]
[1755744046478,3.659,4288.5,4288.1,0.7352]
[1755744046799,3.7758,4288.5,4288.1,0.3042]
[1755744047501,0.1168,4288.5,4288.1,0.001]
[1755744048625,0.1168,4288.5,4288.4,0.3032]
[1755744048809,0.1168,4288.7,4288.4,0.3032]
[1755744049111,0.3011,4288.5,4288.1,0.001]
[1755744049887,0.1168,4288.7,4288.1,0.001]
[1755744050088,0.1168,4288.7,4288.4,0.3032]
[1755744050288,0.1168,4288.7,4288.5,0.431]
[1755744050490,0.1168,4288.7,4288.2,0.1168]
[1755744050694,0.1168,4288.7,4288.2,0.5478]
[1755744050898,0.1168,4288.7,4288.3,0.431]
[1755744051097,0.1168,4288.7,4288.6,0.3032]
[1755744052725,0.1168,4288.7,4288.6,0.2935]
[1755744054233,0.14,4288.7,4288.2,0.1168]
[1755744054915,0.14,4288.7,4288.2,0.5478]
[1755744056790,0.14,4288.7,4288.2,0.1168]
[1755744057138,0.14,4288.7,4288.1,0.001]
[1755744057139,9.41482747,4288.5,4288.1,0.001]
[1755744057331,0.0272,4288.2,4288.1,0.001]
[1755744057529,0.144,4288.2,4288.1,0.001]
[1755744057701,9.98092747,4288.2,4288.1,0.001]
[1755744059225,0.5661,4288.2,4288.1,0.001]
[1755744060216,0.144,4288.2,4288.1,0.001]
[1755744061227,9.98092747,4288.2,4288.1,0.001]
[1755744061821,13.20582747,4288.2,4288.1,0.001]
[1755744064928,9.55882747,4288.2,4288.1,0.001]
[1755744065128,13.20182747,4288.2,4288.1,0.001]
[1755744065500,13.62392747,4288.2,4288.1,0.001]
[1755744066234,13.50712747,4288.2,4288.1,0.001]
[1755744067613,0.0272,4288.2,4288.1,0.001]
[1755744068135,3.6692,4288.2,4288.1,0.001]
[1755744068919,9.44202747,4288.2,4288.1,0.001]
[1755744069120,13.08302747,4288.2,4288.1,0.001]
[1755744071171,0.002,4288.7,4288.1,0.7785]
[1755744071310,3.64,4288.6,4288.1,0.7785]
[1755744071510,3.64,4288.6,4288.2,0.4682]
[1755744072213,0.002,4288.7,4288.5,0.3093]
[1755744072410,0.002,4288.7,4288.6,0.4682]
[1755744072611,0.002,4288.7,4288.6,0.7775]
[1755744074543,0.002,4288.7,4288.6,0.3093]
[1755744075767,0.002,4288.7,4288.6,0.7775]
[1755744076866,0.002,4288.7,4288.6,10.30912747]
[1755744077068,0.002,4288.7,4288.6,14.88324022]
[1755744077375,0.002,4289.6,4288.7,0.66]
[1755744077575,0.002,4289.6,4289.0,3.3093]
[1755744077932,0.002,4289.6,4289.0,3.8943]
[1755744080135,0.002,4289.6,4289.0,3.884]
[1755744080363,0.002,4289.6,4289.0,5.27988275]
[1755744080768,0.002,4289.6,4289.0,8.91188275]
[1755744082685,0.3001,4289.1,4289.0,0.1168]
[1755744082980,0.3001,4289.1,4288.5,3.1168]
[1755744083353,0.3001,4289.1,4288.5,3.585]
[1755744083787,9.85952747,4289.0,4288.1,3.632]
[1755744083963,0.2981,4288.3,4288.1,3.632]
[1755744084158,0.4149,4288.3,4288.1,3.632]
[1755744084572,0.1168,4288.3,4288.1,0.001]
[1755744085355,0.2981,4288.2,4288.1,0.001]
[1755744085752,0.7428,4288.2,4288.1,0.001]
[1755744086257,0.2981,4288.2,4288.1,0.001]
[1755744088862,0.1168,4288.3,4288.1,0.7785]
[1755744089059,0.1168,4288.3,4288.2,0.4682]
[1755744089373,0.1168,4288.6,4288.2,0.8008198]
[1755744089679,0.1168,4288.6,4288.3,0.4682]
[1755744090003,0.1168,4288.6,4288.5,0.3093]
[1755744092498,0.1168,4288.6,4288.5,0.2957]
[1755744092914,0.1168,4289.3,4288.5,10.29552747]
[1755744093196,0.1168,4289.3,4288.5,0.8807]
[1755744093566,0.1168,4289.3,4288.6,0.77418763]
[1755744093791,0.1168,4289.3,4289.0,0.3093]
[1755744093992,0.1168,4289.4,4289.0,0.3093]
[1755744094186,0.1168,4289.4,4289.0,0.7775]
[1755744094789,0.1168,4289.4,4289.0,10.19232747]
[1755744094988,0.002,4289.6,4289.0,13.19232747]
[1755744095184,0.002,4289.6,4289.0,14.99156022]
[1755744096292,0.002,4289.6,4289.0,5.57673275]
[1755744096486,0.002,4289.6,4289.0,3.8943]
[1755744096920,0.002,4289.6,4289.0,25.98291489]
[1755744097125,0.002,4289.6,4289.0,25.95959944]
[1755744097624,0.002,4289.6,4289.0,28.29114525]
[1755744100933,0.002,4289.6,4289.5,2.99127404]
[1755744101097,0.002,4289.6,4289.5,31.89534841]
[1755744101306,0.002,4289.6,4289.5,32.45693567]
[1755744102108,0.02,4289.8,4289.7,2.99116534]
[1755744102308,0.02,4289.8,4289.7,6.32867699]
[1755744102529,0.02,4289.8,4289.7,6.77346534]
[1755744102809,0.02,4289.8,4289.7,9.13560497]
[1755744103004,0.02,4289.8,4289.7,9.22901997]
[1755744103737,0.02,4290.8,4289.8,5.991111]
[1755744103913,0.02,4290.8,4289.9,31.47766666]
[1755744104240,0.02,4290.8,4290.3,2.99083933]
[1755744104412,0.02,4290.8,4290.3,32.28631403]
[1755744104608,0.02,4290.8,4290.3,32.75441403]
[1755744105537,0.02,4290.8,4290.7,2.99062204]
[1755744105853,0.02,4290.8,4290.7,31.3594277]
[1755744106037,0.02,4290.8,4290.7,31.92102148]
[1755744106204,0.02,4290.8,4290.7,34.28316111]
[1755744111345,0.02,4290.8,4290.7,34.37655511]
[1755744115567,0.02,4290.8,4290.7,33.90845511]
[1755744115870,0.7662,4290.8,4290.7,5.47893963]
[1755744116167,0.7662,4290.8,4290.7,9.10393963]
[1755744116472,0.7662,4290.8,4290.7,19.16413408]
[1755744116679,0.3166,4290.8,4290.7,21.49475612]
[1755744117167,0.3166,4290.8,4290.7,19.16413408]
[1755744117367,0.3166,4290.8,4290.7,21.49475612]
[1755744117935,0.3186,4290.8,4290.7,21.49475612]
[1755744118778,0.022,4290.8,4290.7,21.80895612]
[1755744119438,0.7682,4290.8,4290.7,15.53913408]
[1755744119873,0.7682,4290.8,4290.7,19.16313408]
[1755744120076,0.7682,4290.8,4290.7,0.1168]
[1755744120581,0.7682,4290.8,4290.7,6.7408]
[1755744120742,0.7682,4290.8,4290.7,3.7408]
[1755744121393,0.7682,4290.8,4290.7,3.624]
[1755744121789,0.7682,4290.8,4290.4,0.1168]
[1755744121967,9.40019445,4290.6,4290.3,0.17772013]
[1755744122166,0.2966,4290.4,4290.3,0.17772013]
[1755744122687,0.7462,4290.4,4290.3,0.001]
[1755744124250,0.863,4290.4,4290.3,0.001]
[1755744124839,0.4134,4290.4,4290.3,0.001]
[1755744125094,0.1168,4290.4,4290.3,0.40412733]
[1755744125254,0.1168,4290.4,4290.3,0.38081894]
[1755744125460,0.022,4290.8,4290.3,0.38081894]
[1755744125776,0.2966,4290.4,4290.3,0.1178]
[1755744125977,0.7462,4290.4,4290.3,3.625]
[1755744126278,0.7462,4290.4,4290.3,6.625]
[1755744127768,0.2966,4290.4,4290.3,6.625]
[1755744127967,0.1388,4290.8,4290.3,6.625]
[1755744128479,0.2966,4290.4,4290.3,6.625]
[1755744129060,0.7462,4290.4,4290.3,6.625]
[1755744129578,0.2966,4290.4,4290.3,6.625]
[1755744129745,0.2966,4290.4,4290.3,3.001]
[1755744129943,0.7462,4290.4,4290.3,3.626]
[1755744130363,0.7462,4290.4,4290.3,0.001]
[1755744141286,0.3066,4290.4,4290.3,0.001]
[1755744142513,22.16530651,4290.4,4290.3,0.001]
[1755744144998,25.16530651,4290.4,4290.3,0.001]
[1755744145691,28.79030651,4290.4,4290.3,0.001]
[1755744147661,3.9316,4290.4,4290.3,0.001]
[1755744148395,0.3066,4290.4,4290.3,0.001]
[1755744148581,3.9316,4290.4,4290.3,0.001]
[1755744150281,3.625,4290.4,4290.3,0.3084]
[1755744151298,3.7438,4290.4,4290.3,0.7578]
[1755744151680,0.1188,4290.4,4290.3,0.7578]
[1755744156001,0.002,4290.4,4290.3,0.7578]
[1755744160285,0.002,4290.4,4290.3,0.3084]
[1755744160616,0.002,4290.4,4290.3,0.7578]
[1755744168581,0.002,4290.4,4290.3,10.96405941]
[1755744168780,0.002,4290.4,4290.3,2.63100594]
[1755744169120,0.002,4290.4,4290.3,5.1576]
[1755744175214,0.002,4290.4,4290.3,7.48843933]
[1755744175416,0.002,4290.4,4290.3,5.1576]
[1755744175727,0.002,4290.4,4290.3,19.89459035]
[1755744176100,0.002,4290.4,4290.3,24.04859034]
[1755744176326,0.002,4290.4,4290.3,26.41072997]
[1755744179534,0.002,4290.4,4290.3,20.45689064]
[1755744179701,0.002,4290.4,4290.3,23.62949064]
[1755744179904,0.002,4290.4,4290.3,24.06789064]
[1755744180292,0.002,4290.4,4290.3,23.62949064]
[1755744180710,0.002,4290.4,4290.3,10.60133962]
[1755744180892,0.3,4290.4,4290.3,7.27179999]
[1755744181098,0.3,4290.4,4290.3,10.89279999]
[1755744181408,0.7684,4290.4,4290.3,10.89279999]
[1755744181590,0.3,4290.4,4290.3,10.89279999]
[1755744185703,0.3,4290.4,4290.3,6.7388]
[1755744186032,0.3,4290.4,4290.3,7.41268]
[1755744187127,0.002,4290.4,4290.3,7.41268]
[1755744188439,0.002,4290.4,4290.3,7.72928]
[1755744189423,0.002,4290.4,4290.3,8.82768]
[1755744190829,0.002,4290.4,4290.3,11.15851933]
[1755744191514,0.002,4290.4,4290.3,15.31251932]
[1755744194132,0.002,4290.4,4290.3,17.77151932]
[1755744195446,0.002,4290.4,4290.3,15.31251932]
[1755744195609,0.002,4290.4,4290.3,17.77151932]
[1755744196014,0.022,4290.8,4290.7,2.99062204]
[1755744196246,0.022,4290.8,4290.7,20.40750471]
[1755744196410,0.022,4290.8,4290.7,20.98300471]
[1755744196944,0.02,4291.8,4291.2,2.99035048]
[1755744197146,0.02,4291.8,4291.2,19.3292015]
[1755744197336,0.02,4291.8,4291.2,19.9047015]